[Event "Titled Tuesday Blitz September 13 Late 2022"]
[White "Melikyan, Gnel"]
[Black "Arnold, Ken"]
[WhiteFideId "54109990"]
[BlackFideId "2056836"]
[WhiteElo "1772"]
[BlackElo "2462"]
[Result "0-1"]
[Round "09"]
[TimeControl "180+1"]
[Date "2022.09.13"]
[WhiteClock "0:01:23"]
[BlackClock "0:01:25"]

1. e4 {[%clk 0:03:00]}  c6 {[%clk 0:02:59]} 2. Nf3 {[%clk 0:02:57]}  d5 {[%clk 0:02:59]} 3. Nc3 {[%clk 0:02:58]}  Bg4 {[%clk 0:02:57]} 4. h3 {[%clk 0:02:58]}  Bxf3 {[%clk 0:02:55]} 5. Qxf3 {[%clk 0:02:59]}  e6 {[%clk 0:02:55]} 6. b3 {[%clk 0:02:59]}  Nf6 {[%clk 0:02:54]} 7. Bb2 {[%clk 0:02:59]}  Nbd7 {[%clk 0:02:51]} 8. g3 {[%clk 0:02:57]}  dxe4 {[%clk 0:02:48]} 9. Nxe4 {[%clk 0:02:56]}  Be7 {[%clk 0:02:47]} 10. Bg2 {[%clk 0:02:55]}  Nxe4 {[%clk 0:02:46]} 11. Qxe4 {[%clk 0:02:56]}  Bf6 {[%clk 0:02:44]} 12. Bc3 {[%clk 0:02:42]}  Bxc3 {[%clk 0:02:36]} 13. dxc3 {[%clk 0:02:41]}  Qf6 {[%clk 0:02:25]} 14. Qd4 {[%clk 0:02:40]}  Qxd4 {[%clk 0:02:18]} 15. cxd4 {[%clk 0:02:35]}  O-O-O {[%clk 0:02:08]} 16. O-O-O {[%clk 0:02:34]}  Kc7 {[%clk 0:02:05]} 17. Rhe1 {[%clk 0:02:29]}  Nf6 {[%clk 0:02:03]} 18. Kb2 {[%clk 0:02:28]}  Rd7 {[%clk 0:02:03]} 19. c3 {[%clk 0:02:25]}  Rhd8 {[%clk 0:02:03]} 20. Bf3 {[%clk 0:02:26]}  c5 {[%clk 0:01:55]} 21. dxc5 {[%clk 0:02:25]}  Rxd1 {[%clk 0:01:54]} 22. Rxd1 {[%clk 0:02:24]}  Rxd1 {[%clk 0:01:53]} 23. Bxd1 {[%clk 0:02:24]}  Ne4 {[%clk 0:01:53]} 24. Bc2 {[%clk 0:02:08]}  Nxf2 {[%clk 0:01:49]} 25. h4 {[%clk 0:01:57]}  h5 {[%clk 0:01:39]} 26. Bh7 {[%clk 0:01:46]}  Kd7 {[%clk 0:01:37]} 27. b4 {[%clk 0:01:45]}  g6 {[%clk 0:01:34]} 28. c4 {[%clk 0:01:37]}  Ne4 {[%clk 0:01:32]} 29. a4 {[%clk 0:01:31]}  Nxg3 {[%clk 0:01:32]} 30. a5 {[%clk 0:01:26]}  Ne4 {[%clk 0:01:32]} 31. Kc2 {[%clk 0:01:25]}  Nf6 {[%clk 0:01:32]} 32. b5 {[%clk 0:01:20]}  Nxh7 {[%clk 0:01:31]} 33. Kd3 {[%clk 0:01:20]}  g5 {[%clk 0:01:31]} 34. hxg5 {[%clk 0:01:20]}  Nxg5 {[%clk 0:01:32]} 35. Ke3 {[%clk 0:01:21]}  h4 {[%clk 0:01:31]} 36. Kf4 {[%clk 0:01:22]}  h3 {[%clk 0:01:32]} 37. Kxg5 {[%clk 0:01:22]}  h2 {[%clk 0:01:32]} 38. a6 {[%clk 0:01:22]}  bxa6 {[%clk 0:01:31]} 39. b6 {[%clk 0:01:20]}  axb6 {[%clk 0:01:30]} 40. cxb6 {[%clk 0:01:20]}  h1=Q {[%clk 0:01:29]} 41. c5 {[%clk 0:01:21]}  Qd5+ {[%clk 0:01:29]} 42. Kf6 {[%clk 0:01:21]}  Qxc5 {[%clk 0:01:28]} 43. b7 {[%clk 0:01:21]}  Qb6 {[%clk 0:01:27]} 44. b8=Q {[%clk 0:01:21]}  Qxb8 {[%clk 0:01:27]} 45. Kxf7 {[%clk 0:01:22]}  Qf4+ {[%clk 0:01:27]} 46. Kg8 {[%clk 0:01:22]}  Ke7 {[%clk 0:01:25]} 47. Kh7 {[%clk 0:01:23]}  Qg5 {[%clk 0:01:25]} 48. Kh8 {[%clk 0:01:23]}  Kf7 {[%clk 0:01:25]} 0-1


[Site "https://www.chess.com"]

[Event "Titled Tuesday Blitz September 13 Late 2022"]
[White "Naroditsky, Daniel"]
[Black "Bluebaum, Matthias"]
[WhiteFideId "2026961"]
[BlackFideId "24651516"]
[WhiteElo "2628"]
[BlackElo "2633"]
[Result "0-1"]
[Round "09"]
[TimeControl "180+1"]
[Date "2022.09.13"]
[WhiteClock "0:00:04"]
[BlackClock "0:00:15"]

1. Nf3 {[%clk 0:02:58]}  d5 {[%clk 0:03:00]} 2. g3 {[%clk 0:02:58]}  Bg4 {[%clk 0:03:00]} 3. Bg2 {[%clk 0:02:58]}  e6 {[%clk 0:03:01]} 4. O-O {[%clk 0:02:59]}  Nf6 {[%clk 0:03:01]} 5. d4 {[%clk 0:02:59]}  Be7 {[%clk 0:03:00]} 6. c3 {[%clk 0:03:00]}  O-O {[%clk 0:03:00]} 7. Nbd2 {[%clk 0:03:00]}  c5 {[%clk 0:02:56]} 8. Ne5 {[%clk 0:02:59]}  Bh5 {[%clk 0:02:56]} 9. Ndf3 {[%clk 0:02:51]}  Nc6 {[%clk 0:02:51]} 10. Nxc6 {[%clk 0:02:33]}  bxc6 {[%clk 0:02:52]} 11. Ne5 {[%clk 0:02:32]}  Qb6 {[%clk 0:02:44]} 12. b3 {[%clk 0:02:28]}  cxd4 {[%clk 0:02:40]} 13. cxd4 {[%clk 0:02:29]}  c5 {[%clk 0:02:40]} 14. Be3 {[%clk 0:02:27]}  Rfc8 {[%clk 0:02:37]} 15. Qd2 {[%clk 0:02:01]}  Qb4 {[%clk 0:02:16]} 16. Qb2 {[%clk 0:01:47]}  c4 {[%clk 0:01:59]} 17. Rac1 {[%clk 0:01:39]}  Qa3 {[%clk 0:01:53]} 18. Rc2 {[%clk 0:01:08]}  Qxb2 {[%clk 0:01:30]} 19. Rxb2 {[%clk 0:01:09]}  Ba3 {[%clk 0:01:29]} 20. Rc2 {[%clk 0:01:06]}  cxb3 {[%clk 0:01:29]} 21. Rxc8+ {[%clk 0:01:07]}  Rxc8 {[%clk 0:01:29]} 22. axb3 {[%clk 0:01:08]}  Bxe2 {[%clk 0:01:27]} 23. Ra1 {[%clk 0:01:05]}  Bf8 {[%clk 0:00:43]} 24. Rxa7 {[%clk 0:01:01]}  Ng4 {[%clk 0:00:43]} 25. Nxg4 {[%clk 0:00:31]}  Bxg4 {[%clk 0:00:44]} 26. Rb7 {[%clk 0:00:26]}  h6 {[%clk 0:00:37]} 27. h3 {[%clk 0:00:23]}  Bf5 {[%clk 0:00:37]} 28. Bf1 {[%clk 0:00:22]}  g5 {[%clk 0:00:33]} 29. b4 {[%clk 0:00:21]}  Rc2 {[%clk 0:00:34]} 30. b5 {[%clk 0:00:20]}  Rb2 {[%clk 0:00:34]} 31. Bg2 {[%clk 0:00:07]}  Rb1+ {[%clk 0:00:33]} 32. Kh2 {[%clk 0:00:07]}  Kg7 {[%clk 0:00:31]} 33. b6 {[%clk 0:00:07]}  Bd6 {[%clk 0:00:31]} 34. Bf3 {[%clk 0:00:06]}  Bd3 {[%clk 0:00:26]} 35. Bh5 {[%clk 0:00:06]}  Bg6 {[%clk 0:00:25]} 36. Bg4 {[%clk 0:00:04]}  Kf6 {[%clk 0:00:24]} 37. Be2 {[%clk 0:00:04]}  h5 {[%clk 0:00:24]} 38. Kg2 {[%clk 0:00:03]}  h4 {[%clk 0:00:23]} 39. Bg4 {[%clk 0:00:02]}  hxg3 {[%clk 0:00:18]} 40. fxg3 {[%clk 0:00:03]}  Rb2+ {[%clk 0:00:19]} 41. Bf2 {[%clk 0:00:04]}  Bb4 {[%clk 0:00:16]} 42. Kg1 {[%clk 0:00:05]}  Rb1+ {[%clk 0:00:16]} 43. Kh2 {[%clk 0:00:04]}  Be4 {[%clk 0:00:15]} 0-1


[Site "https://www.chess.com"]

[Event "Titled Tuesday Blitz September 13 Late 2022"]
[White "Putnam, Liam"]
[Black "Timmermans, Mark"]
[WhiteFideId "30938279"]
[BlackFideId "1026399"]
[WhiteElo "2031"]
[BlackElo "2460"]
[Result "1-0"]
[Round "09"]
[TimeControl "180+1"]
[Date "2022.09.13"]
[WhiteClock "0:00:12"]
[BlackClock "0:01:01"]

1. e4 {[%clk 0:03:00]}  e5 {[%clk 0:02:59]} 2. Nf3 {[%clk 0:02:57]}  Nc6 {[%clk 0:02:59]} 3. Bb5 {[%clk 0:02:57]}  f5 {[%clk 0:02:58]} 4. d3 {[%clk 0:02:50]}  fxe4 {[%clk 0:02:58]} 5. dxe4 {[%clk 0:02:51]}  Nf6 {[%clk 0:02:58]} 6. O-O {[%clk 0:02:46]}  d6 {[%clk 0:02:58]} 7. Nc3 {[%clk 0:02:46]}  Be7 {[%clk 0:02:57]} 8. Bc4 {[%clk 0:02:46]}  Na5 {[%clk 0:02:57]} 9. Bd3 {[%clk 0:02:32]}  O-O {[%clk 0:02:56]} 10. Bg5 {[%clk 0:02:30]}  Kh8 {[%clk 0:02:54]} 11. Qe2 {[%clk 0:02:28]}  Qe8 {[%clk 0:02:44]} 12. Rad1 {[%clk 0:02:05]}  Bg4 {[%clk 0:02:38]} 13. h3 {[%clk 0:02:02]}  Bh5 {[%clk 0:02:36]} 14. Bxf6 {[%clk 0:01:46]}  Bxf6 {[%clk 0:02:32]} 15. Nd5 {[%clk 0:01:45]}  Bd8 {[%clk 0:02:31]} 16. g4 {[%clk 0:01:41]}  Bf7 {[%clk 0:02:30]} 17. Kg2 {[%clk 0:01:37]}  Nc6 {[%clk 0:02:29]} 18. c3 {[%clk 0:01:35]}  Be6 {[%clk 0:02:27]} 19. Qe3 {[%clk 0:01:34]}  Qf7 {[%clk 0:02:22]} 20. Bc2 {[%clk 0:01:19]}  Qg6 {[%clk 0:02:17]} 21. Nh2 {[%clk 0:01:08]}  Bg5 {[%clk 0:02:10]} 22. Qe2 {[%clk 0:00:44]}  Rf7 {[%clk 0:02:09]} 23. Kh1 {[%clk 0:00:42]}  Raf8 {[%clk 0:02:07]} 24. Rd3 {[%clk 0:00:40]}  Bxd5 {[%clk 0:01:48]} 25. exd5 {[%clk 0:00:37]}  Ne7 {[%clk 0:01:48]} 26. Rf3 {[%clk 0:00:29]}  Qh6 {[%clk 0:01:47]} 27. Rxf7 {[%clk 0:00:26]}  Rxf7 {[%clk 0:01:48]} 28. Kg2 {[%clk 0:00:26]}  Ng6 {[%clk 0:01:46]} 29. Bxg6 {[%clk 0:00:24]}  Qxg6 {[%clk 0:01:47]} 30. Nf3 {[%clk 0:00:23]}  Bf4 {[%clk 0:01:44]} 31. Nh4 {[%clk 0:00:24]}  Qg5 {[%clk 0:01:43]} 32. Nf3 {[%clk 0:00:23]}  Qg6 {[%clk 0:01:38]} 33. Re1 {[%clk 0:00:23]}  h5 {[%clk 0:01:30]} 34. Qe4 {[%clk 0:00:23]}  Qh6 {[%clk 0:01:24]} 35. Rh1 {[%clk 0:00:18]}  a5 {[%clk 0:01:20]} 36. b4 {[%clk 0:00:16]}  axb4 {[%clk 0:01:21]} 37. cxb4 {[%clk 0:00:17]}  Bg5 {[%clk 0:01:17]} 38. h4 {[%clk 0:00:14]}  Bd8 {[%clk 0:01:04]} 39. g5 {[%clk 0:00:14]}  Qh7 {[%clk 0:01:04]} 40. g6 {[%clk 0:00:14]}  Rf4 {[%clk 0:01:02]} 41. Qxf4 {[%clk 0:00:15]}  Qxg6+ {[%clk 0:01:03]} 42. Qg3 {[%clk 0:00:15]}  Qe4 {[%clk 0:01:03]} 43. Re1 {[%clk 0:00:13]}  Qxd5 {[%clk 0:01:03]} 44. Qg6 {[%clk 0:00:12]}  Bf6 {[%clk 0:01:01]} 45. Qxh5+ {[%clk 0:00:12]}  Kg8 {[%clk 0:01:01]} 46. Qe8+ {[%clk 0:00:13]}  Kh7 {[%clk 0:01:02]} 47. Qh5+ {[%clk 0:00:11]}  Kg8 {[%clk 0:01:02]} 48. Qg4 {[%clk 0:00:12]}  Qxa2 {[%clk 0:01:01]} 49. Qc8+ {[%clk 0:00:12]}  Kh7 {[%clk 0:01:01]} 50. Qxb7 {[%clk 0:00:12]}  Qd5 {[%clk 0:01:01]} 51. Qxd5 {[%clk 0:00:12]} 1-0


[Site "https://www.chess.com"]

[Event "Titled Tuesday Blitz September 13 Late 2022"]
[White "Sivakumar, Shaaketh"]
[Black "Martins, Bruno Andre Leite"]
[WhiteFideId "30940176"]
[BlackFideId "1942255"]
[WhiteElo "1799"]
[BlackElo "2282"]
[Result "1-0"]
[Round "09"]
[TimeControl "180+1"]
[Date "2022.09.13"]
[WhiteClock "0:00:55"]
[BlackClock "0:00:03"]

1. e4 {[%clk 0:03:00]}  c6 {[%clk 0:02:55]} 2. d4 {[%clk 0:02:54]}  d5 {[%clk 0:02:56]} 3. e5 {[%clk 0:02:53]}  Bf5 {[%clk 0:02:51]} 4. h4 {[%clk 0:02:52]}  Qc8 {[%clk 0:02:46]} 5. Bd3 {[%clk 0:02:52]}  c5 {[%clk 0:02:33]} 6. dxc5 {[%clk 0:02:45]}  Bxd3 {[%clk 0:02:32]} 7. Qxd3 {[%clk 0:02:46]}  Qxc5 {[%clk 0:02:32]} 8. Be3 {[%clk 0:02:40]}  Qa5+ {[%clk 0:02:26]} 9. Nd2 {[%clk 0:02:37]}  e6 {[%clk 0:02:20]} 10. Nf3 {[%clk 0:02:35]}  Nc6 {[%clk 0:02:19]} 11. a3 {[%clk 0:02:32]}  Nge7 {[%clk 0:02:14]} 12. O-O {[%clk 0:02:31]}  Nf5 {[%clk 0:01:56]} 13. b4 {[%clk 0:02:22]}  Qc7 {[%clk 0:01:45]} 14. Bf4 {[%clk 0:02:22]}  Be7 {[%clk 0:01:42]} 15. h5 {[%clk 0:02:21]}  h6 {[%clk 0:01:33]} 16. c4 {[%clk 0:02:15]}  dxc4 {[%clk 0:01:32]} 17. Qxc4 {[%clk 0:02:08]}  a6 {[%clk 0:01:24]} 18. Ne4 {[%clk 0:02:03]}  Rd8 {[%clk 0:01:07]} 19. g4 {[%clk 0:01:55]}  Nfd4 {[%clk 0:01:02]} 20. Nxd4 {[%clk 0:01:24]}  Rxd4 {[%clk 0:01:03]} 21. Qc2 {[%clk 0:01:24]}  O-O {[%clk 0:00:56]} 22. Rad1 {[%clk 0:01:19]}  Rfd8 {[%clk 0:00:47]} 23. Rxd4 {[%clk 0:01:18]}  Rxd4 {[%clk 0:00:48]} 24. Be3 {[%clk 0:01:18]}  Rd5 {[%clk 0:00:46]} 25. f4 {[%clk 0:01:18]}  Qd8 {[%clk 0:00:44]} 26. g5 {[%clk 0:01:10]}  hxg5 {[%clk 0:00:32]} 27. h6 {[%clk 0:01:05]}  gxh6 {[%clk 0:00:20]} 28. Qg2 {[%clk 0:01:04]}  Rd3 {[%clk 0:00:13]} 29. fxg5 {[%clk 0:01:03]}  hxg5 {[%clk 0:00:11]} 30. Bxg5 {[%clk 0:01:02]}  Kf8 {[%clk 0:00:07]} 31. Nf6 {[%clk 0:01:00]}  Qd4+ {[%clk 0:00:07]} 32. Kh1 {[%clk 0:00:55]}  Nxe5 {[%clk 0:00:03]} 33. Bh6# {[%clk 0:00:55]} 1-0


[Site "https://www.chess.com"]

[Event "Titled Tuesday Blitz September 13 Late 2022"]
[White "Trost, Edvin"]
[Black "Zenin, Dmitry"]
[WhiteFideId "1729519"]
[BlackFideId "4127897"]
[WhiteElo "2186"]
[BlackElo "2215"]
[Result "1-0"]
[Round "09"]
[TimeControl "180+1"]
[Date "2022.09.13"]
[WhiteClock "0:00:17"]
[BlackClock "0:00:04"]

1. Nf3 {[%clk 0:02:41]}  Nf6 {[%clk 0:02:59]} 2. g3 {[%clk 0:02:41]}  g6 {[%clk 0:02:59]} 3. Bg2 {[%clk 0:02:40]}  Bg7 {[%clk 0:02:59]} 4. O-O {[%clk 0:02:41]}  O-O {[%clk 0:02:59]} 5. c4 {[%clk 0:02:31]}  d6 {[%clk 0:02:58]} 6. Nc3 {[%clk 0:02:31]}  e5 {[%clk 0:02:58]} 7. d4 {[%clk 0:02:28]}  Nbd7 {[%clk 0:02:55]} 8. e3 {[%clk 0:02:21]}  Re8 {[%clk 0:02:54]} 9. b3 {[%clk 0:02:21]}  c6 {[%clk 0:02:39]} 10. Bb2 {[%clk 0:02:20]}  a6 {[%clk 0:02:19]} 11. Qc2 {[%clk 0:02:19]}  Rb8 {[%clk 0:02:11]} 12. Rad1 {[%clk 0:02:08]}  Qc7 {[%clk 0:02:05]} 13. Ba3 {[%clk 0:02:02]}  Bf8 {[%clk 0:02:04]} 14. dxe5 {[%clk 0:02:00]}  dxe5 {[%clk 0:02:03]} 15. Bxf8 {[%clk 0:02:00]}  Kxf8 {[%clk 0:01:57]} 16. Ng5 {[%clk 0:01:58]}  Nc5 {[%clk 0:01:51]} 17. b4 {[%clk 0:01:55]}  Ne6 {[%clk 0:01:51]} 18. Nge4 {[%clk 0:01:55]}  Nxe4 {[%clk 0:01:45]} 19. Nxe4 {[%clk 0:01:56]}  Kg7 {[%clk 0:01:36]} 20. Nd6 {[%clk 0:01:46]}  Rf8 {[%clk 0:01:35]} 21. c5 {[%clk 0:01:44]}  f6 {[%clk 0:01:27]} 22. Rd2 {[%clk 0:01:43]}  Nd8 {[%clk 0:01:21]} 23. Rfd1 {[%clk 0:01:42]}  Be6 {[%clk 0:01:18]} 24. a4 {[%clk 0:01:41]}  Nf7 {[%clk 0:01:17]} 25. a5 {[%clk 0:01:40]}  Rbd8 {[%clk 0:01:05]} 26. h4 {[%clk 0:01:35]}  Rd7 {[%clk 0:01:01]} 27. Be4 {[%clk 0:01:28]}  Rfd8 {[%clk 0:00:57]} 28. h5 {[%clk 0:01:18]}  Nxd6 {[%clk 0:00:52]} 29. Rxd6 {[%clk 0:01:13]}  Rxd6 {[%clk 0:00:52]} 30. cxd6 {[%clk 0:01:11]}  Rxd6 {[%clk 0:00:52]} 31. Rxd6 {[%clk 0:01:12]}  Qxd6 {[%clk 0:00:52]} 32. hxg6 {[%clk 0:01:13]}  hxg6 {[%clk 0:00:51]} 33. Bxg6 {[%clk 0:01:13]}  Qxb4 {[%clk 0:00:49]} 34. Bf5 {[%clk 0:01:10]}  Bd5 {[%clk 0:00:42]} 35. e4 {[%clk 0:01:09]}  Bf7 {[%clk 0:00:37]} 36. Qd1 {[%clk 0:01:08]}  Qxa5 {[%clk 0:00:28]} 37. Qd7 {[%clk 0:01:08]}  Qa2 {[%clk 0:00:22]} 38. Qxb7 {[%clk 0:01:07]}  a5 {[%clk 0:00:22]} 39. Qa7 {[%clk 0:00:56]}  a4 {[%clk 0:00:21]} 40. Bd7 {[%clk 0:00:57]}  a3 {[%clk 0:00:21]} 41. Be8 {[%clk 0:00:47]}  Qb3 {[%clk 0:00:16]} 42. Bxf7 {[%clk 0:00:45]}  Qxf7 {[%clk 0:00:15]} 43. Qxa3 {[%clk 0:00:45]}  Qd7 {[%clk 0:00:16]} 44. Qc5 {[%clk 0:00:43]}  Kg6 {[%clk 0:00:15]} 45. Kg2 {[%clk 0:00:41]}  Kg7 {[%clk 0:00:14]} 46. Kf3 {[%clk 0:00:40]}  Kg6 {[%clk 0:00:14]} 47. Ke3 {[%clk 0:00:41]}  Kg7 {[%clk 0:00:13]} 48. f3 {[%clk 0:00:40]}  Kg6 {[%clk 0:00:13]} 49. Ke2 {[%clk 0:00:37]}  Kg7 {[%clk 0:00:14]} 50. g4 {[%clk 0:00:37]}  Qb7 {[%clk 0:00:12]} 51. Kf2 {[%clk 0:00:36]}  Qd7 {[%clk 0:00:12]} 52. Kg3 {[%clk 0:00:35]}  Qb7 {[%clk 0:00:11]} 53. Qd6 {[%clk 0:00:33]}  Qc8 {[%clk 0:00:10]} 54. g5 {[%clk 0:00:33]}  fxg5 {[%clk 0:00:10]} 55. Qxe5+ {[%clk 0:00:33]}  Kg6 {[%clk 0:00:11]} 56. Qd6+ {[%clk 0:00:33]}  Kg7 {[%clk 0:00:10]} 57. Qe7+ {[%clk 0:00:32]}  Kg6 {[%clk 0:00:10]} 58. e5 {[%clk 0:00:32]}  Qf5 {[%clk 0:00:09]} 59. Qd6+ {[%clk 0:00:32]}  Kh5 {[%clk 0:00:09]} 60. Kf2 {[%clk 0:00:20]}  Qc2+ {[%clk 0:00:07]} 61. Kf1 {[%clk 0:00:20]}  Qc1+ {[%clk 0:00:06]} 62. Ke2 {[%clk 0:00:20]}  Qc2+ {[%clk 0:00:06]} 63. Ke3 {[%clk 0:00:21]}  Qc3+ {[%clk 0:00:05]} 64. Ke4 {[%clk 0:00:21]}  Qc2+ {[%clk 0:00:05]} 65. Qd3 {[%clk 0:00:20]}  Qc5 {[%clk 0:00:04]} 66. e6 {[%clk 0:00:17]} 1-0


[Site "https://www.chess.com"]

[Event "Titled Tuesday Blitz September 13 Late 2022"]
[White "Zhigalko, Sergei"]
[Black "Nasuta, Grzegorz"]
[WhiteFideId "13502956"]
[BlackFideId "1141686"]
[WhiteElo "2662"]
[BlackElo "2354"]
[Result "1-0"]
[Round "09"]
[TimeControl "180+1"]
[Date "2022.09.13"]
[WhiteClock "0:00:04"]
[BlackClock "0:00:05"]

1. e4 {[%clk 0:03:00]}  e5 {[%clk 0:03:00]} 2. Nf3 {[%clk 0:03:01]}  Nc6 {[%clk 0:03:01]} 3. Bc4 {[%clk 0:03:00]}  Nf6 {[%clk 0:03:00]} 4. d3 {[%clk 0:03:00]}  Bc5 {[%clk 0:02:57]} 5. O-O {[%clk 0:03:00]}  a6 {[%clk 0:02:54]} 6. Nbd2 {[%clk 0:02:58]}  d6 {[%clk 0:02:53]} 7. c3 {[%clk 0:02:59]}  Ba7 {[%clk 0:02:51]} 8. Bb3 {[%clk 0:02:59]}  h6 {[%clk 0:02:51]} 9. Re1 {[%clk 0:02:58]}  O-O {[%clk 0:02:50]} 10. Nf1 {[%clk 0:02:58]}  Re8 {[%clk 0:02:49]} 11. Ng3 {[%clk 0:02:58]}  Be6 {[%clk 0:02:49]} 12. h3 {[%clk 0:02:56]}  d5 {[%clk 0:02:46]} 13. Be3 {[%clk 0:02:34]}  Bxe3 {[%clk 0:02:38]} 14. Rxe3 {[%clk 0:02:34]}  Qd7 {[%clk 0:02:14]} 15. exd5 {[%clk 0:02:23]}  Bxd5 {[%clk 0:02:14]} 16. Qe2 {[%clk 0:02:18]}  Bxb3 {[%clk 0:01:40]} 17. axb3 {[%clk 0:02:17]}  Nd5 {[%clk 0:01:40]} 18. Nxe5 {[%clk 0:02:07]}  Nxe5 {[%clk 0:01:11]} 19. Rxe5 {[%clk 0:02:06]}  Nf4 {[%clk 0:00:58]} 20. Rxe8+ {[%clk 0:01:54]}  Rxe8 {[%clk 0:00:59]} 21. Qf3 {[%clk 0:01:54]}  Nxd3 {[%clk 0:00:59]} 22. Rd1 {[%clk 0:01:16]}  Re1+ {[%clk 0:00:58]} 23. Rxe1 {[%clk 0:01:16]}  Nxe1 {[%clk 0:00:59]} 24. Qxb7 {[%clk 0:01:14]}  Qd1 {[%clk 0:00:50]} 25. Nf1 {[%clk 0:00:43]}  Nd3 {[%clk 0:00:40]} 26. Qxc7 {[%clk 0:00:22]}  Nxb2 {[%clk 0:00:25]} 27. b4 {[%clk 0:00:14]}  Qe2 {[%clk 0:00:13]} 28. Qc8+ {[%clk 0:00:09]}  Kh7 {[%clk 0:00:13]} 29. Qf5+ {[%clk 0:00:10]}  Kg8 {[%clk 0:00:13]} 30. Ne3 {[%clk 0:00:07]}  Qe1+ {[%clk 0:00:12]} 31. Kh2 {[%clk 0:00:07]}  Qxc3 {[%clk 0:00:12]} 32. Nd5 {[%clk 0:00:06]}  Qe1 {[%clk 0:00:07]} 33. Qc8+ {[%clk 0:00:06]}  Kh7 {[%clk 0:00:07]} 34. Qc2+ {[%clk 0:00:06]}  Kg8 {[%clk 0:00:04]} 35. Qxb2 {[%clk 0:00:06]}  Qe4 {[%clk 0:00:04]} 36. Ne3 {[%clk 0:00:06]}  Qf4+ {[%clk 0:00:04]} 37. Kg1 {[%clk 0:00:06]}  Qe4 {[%clk 0:00:05]} 38. Qb3 {[%clk 0:00:04]}  h5 {[%clk 0:00:04]} 39. Qc4 {[%clk 0:00:04]}  Qb1+ {[%clk 0:00:05]} 40. Kh2 {[%clk 0:00:04]}  g6 {[%clk 0:00:05]} 41. Nd5 {[%clk 0:00:04]} 1-0


[Site "https://www.chess.com"]

[Event "Titled Tuesday Blitz September 13 Late 2022"]
[White "Andreikin, Dmitry"]
[Black "Pap, Gyula"]
[WhiteFideId "4158814"]
[BlackFideId "725323"]
[WhiteElo "2736"]
[BlackElo "2519"]
[Result "1-0"]
[Round "10"]
[TimeControl "180+1"]
[Date "2022.09.13"]
[WhiteClock "0:00:18"]
[BlackClock "0:00:02"]

1. d4 {[%clk 0:03:00]}  d5 {[%clk 0:02:58]} 2. c4 {[%clk 0:03:01]}  c6 {[%clk 0:02:58]} 3. Nf3 {[%clk 0:03:00]}  Nf6 {[%clk 0:02:59]} 4. Qc2 {[%clk 0:03:01]}  g6 {[%clk 0:02:51]} 5. cxd5 {[%clk 0:03:00]}  cxd5 {[%clk 0:02:42]} 6. Bf4 {[%clk 0:03:00]}  Nc6 {[%clk 0:02:42]} 7. e3 {[%clk 0:02:59]}  Bg7 {[%clk 0:02:40]} 8. Nc3 {[%clk 0:02:58]}  O-O {[%clk 0:02:40]} 9. h3 {[%clk 0:02:58]}  Qb6 {[%clk 0:02:35]} 10. Be2 {[%clk 0:02:38]}  Bf5 {[%clk 0:02:34]} 11. Qb3 {[%clk 0:02:30]}  Qxb3 {[%clk 0:02:33]} 12. axb3 {[%clk 0:02:31]}  Bc2 {[%clk 0:02:16]} 13. Ra3 {[%clk 0:02:22]}  Rfd8 {[%clk 0:02:16]} 14. Kd2 {[%clk 0:02:15]}  Bf5 {[%clk 0:02:17]} 15. Rc1 {[%clk 0:02:14]}  Bf8 {[%clk 0:02:02]} 16. Raa1 {[%clk 0:01:55]}  Rac8 {[%clk 0:01:50]} 17. Ne5 {[%clk 0:01:51]}  Nxe5 {[%clk 0:01:31]} 18. Bxe5 {[%clk 0:01:50]}  a6 {[%clk 0:01:25]} 19. g4 {[%clk 0:01:27]}  Be6 {[%clk 0:01:24]} 20. Na4 {[%clk 0:01:24]}  Nd7 {[%clk 0:01:21]} 21. Bc7 {[%clk 0:01:16]}  Re8 {[%clk 0:01:21]} 22. Bf4 {[%clk 0:01:00]}  f6 {[%clk 0:01:15]} 23. b4 {[%clk 0:00:59]}  Bf7 {[%clk 0:01:10]} 24. Rxc8 {[%clk 0:00:48]}  Rxc8 {[%clk 0:01:10]} 25. Nc5 {[%clk 0:00:48]}  Be8 {[%clk 0:00:40]} 26. Ne6 {[%clk 0:00:42]}  Bf7 {[%clk 0:00:30]} 27. Nxf8 {[%clk 0:00:39]}  Kxf8 {[%clk 0:00:26]} 28. b5 {[%clk 0:00:40]}  axb5 {[%clk 0:00:13]} 29. Ra7 {[%clk 0:00:39]}  Nb6 {[%clk 0:00:14]} 30. b3 {[%clk 0:00:38]}  Ra8 {[%clk 0:00:03]} 31. Rxb7 {[%clk 0:00:25]}  Ra2+ {[%clk 0:00:03]} 32. Ke1 {[%clk 0:00:26]}  Ra1+ {[%clk 0:00:03]} 33. Bd1 {[%clk 0:00:26]}  Nc8 {[%clk 0:00:03]} 34. Rxb5 {[%clk 0:00:25]}  e5 {[%clk 0:00:03]} 35. dxe5 {[%clk 0:00:23]}  fxe5 {[%clk 0:00:02]} 36. Bxe5 {[%clk 0:00:23]}  Rb1 {[%clk 0:00:03]} 37. Kd2 {[%clk 0:00:20]}  Be6 {[%clk 0:00:02]} 38. Kc2 {[%clk 0:00:18]} 1-0


[Site "https://www.chess.com"]

[Event "Titled Tuesday Blitz September 13 Late 2022"]
[White "Ceres, Dragos"]
[Black "Fishbein, Alexander"]
[WhiteFideId "13905864"]
[BlackFideId "2000377"]
[WhiteElo "2150"]
[BlackElo "2410"]
[Result "0-1"]
[Round "10"]
[TimeControl "180+1"]
[Date "2022.09.13"]
[WhiteClock "0:00:05"]
[BlackClock "0:00:28"]

1. e4 {[%clk 0:03:00]}  c5 {[%clk 0:02:58]} 2. Nf3 {[%clk 0:03:00]}  d6 {[%clk 0:02:58]} 3. c3 {[%clk 0:03:00]}  Nf6 {[%clk 0:02:58]} 4. h3 {[%clk 0:02:59]}  Nc6 {[%clk 0:02:57]} 5. Bd3 {[%clk 0:02:58]}  d5 {[%clk 0:02:55]} 6. e5 {[%clk 0:02:40]}  c4 {[%clk 0:02:54]} 7. Bc2 {[%clk 0:02:21]}  Nd7 {[%clk 0:02:53]} 8. Qe2 {[%clk 0:02:02]}  Nc5 {[%clk 0:02:51]} 9. O-O {[%clk 0:01:59]}  g6 {[%clk 0:02:46]} 10. b4 {[%clk 0:01:55]}  cxb3 {[%clk 0:02:43]} 11. axb3 {[%clk 0:01:56]}  d4 {[%clk 0:02:36]} 12. cxd4 {[%clk 0:01:49]}  Nxd4 {[%clk 0:02:33]} 13. Nxd4 {[%clk 0:01:50]}  Qxd4 {[%clk 0:02:33]} 14. Nc3 {[%clk 0:01:49]}  Bg7 {[%clk 0:02:28]} 15. Ba3 {[%clk 0:01:22]}  Ne6 {[%clk 0:02:01]} 16. Rfe1 {[%clk 0:01:14]}  O-O {[%clk 0:02:00]} 17. Bxe7 {[%clk 0:01:13]}  Re8 {[%clk 0:02:00]} 18. Bd6 {[%clk 0:01:09]}  Nf4 {[%clk 0:01:57]} 19. Qc4 {[%clk 0:00:49]}  Qxc4 {[%clk 0:01:44]} 20. bxc4 {[%clk 0:00:50]}  Be6 {[%clk 0:01:38]} 21. c5 {[%clk 0:00:48]}  Bf8 {[%clk 0:01:28]} 22. Nb5 {[%clk 0:00:45]}  Rac8 {[%clk 0:01:10]} 23. Nc7 {[%clk 0:00:43]}  Rxc7 {[%clk 0:01:06]} 24. Bxc7 {[%clk 0:00:43]}  Bxc5 {[%clk 0:01:07]} 25. Be4 {[%clk 0:00:37]}  b5 {[%clk 0:00:52]} 26. Bd6 {[%clk 0:00:20]}  Bd4 {[%clk 0:00:52]} 27. Rab1 {[%clk 0:00:20]}  Bc4 {[%clk 0:00:46]} 28. g3 {[%clk 0:00:19]}  Nxh3+ {[%clk 0:00:44]} 29. Kg2 {[%clk 0:00:19]}  Nxf2 {[%clk 0:00:44]} 30. Bc6 {[%clk 0:00:16]}  Rc8 {[%clk 0:00:43]} 31. Bb7 {[%clk 0:00:12]}  Rd8 {[%clk 0:00:41]} 32. Rf1 {[%clk 0:00:09]}  Bxf1+ {[%clk 0:00:37]} 33. Rxf1 {[%clk 0:00:10]}  Nd3 {[%clk 0:00:34]} 34. Bd5 {[%clk 0:00:10]}  Bxe5 {[%clk 0:00:32]} 35. Bxf7+ {[%clk 0:00:08]}  Kg7 {[%clk 0:00:32]} 36. Bxe5+ {[%clk 0:00:05]}  Nxe5 {[%clk 0:00:32]} 37. Ba2 {[%clk 0:00:06]}  Rxd2+ {[%clk 0:00:31]} 38. Rf2 {[%clk 0:00:07]}  Rxf2+ {[%clk 0:00:31]} 39. Kxf2 {[%clk 0:00:08]}  a5 {[%clk 0:00:31]} 40. Ke3 {[%clk 0:00:08]}  a4 {[%clk 0:00:30]} 41. Kd4 {[%clk 0:00:08]}  b4 {[%clk 0:00:28]} 42. Ke4 {[%clk 0:00:05]}  b3 {[%clk 0:00:28]} 0-1


[Site "https://www.chess.com"]